[Event "Titled Tuesday Blitz February 21 Early 2023"]
[White "Matko, Ognjen"]
[Black "Spata, German"]
[WhiteFideId "14509717"]
[BlackFideId "113026"]
[WhiteElo "2295"]
[BlackElo "2383"]
[Result "0-1"]
[Round "07"]
[TimeControl "180+2"]
[Date "2023.02.21"]
[WhiteClock "0:00:17"]
[BlackClock "0:00:16"]

1. e4 {[%clk 0:02:55]}  g6 {[%clk 0:02:50]} 2. d4 {[%clk 0:02:55]}  Bg7 {[%clk 0:02:50]} 3. Nc3 {[%clk 0:02:55]}  d6 {[%clk 0:02:48]} 4. h4 {[%clk 0:02:55]}  h6 {[%clk 0:02:48]} 5. Be2 {[%clk 0:02:54]}  a6 {[%clk 0:02:47]} 6. a4 {[%clk 0:02:52]}  b6 {[%clk 0:02:48]} 7. Be3 {[%clk 0:02:51]}  Bb7 {[%clk 0:02:47]} 8. Nf3 {[%clk 0:02:51]}  e6 {[%clk 0:02:39]} 9. Nd2 {[%clk 0:02:41]}  Nf6 {[%clk 0:02:32]} 10. f3 {[%clk 0:02:41]}  c5 {[%clk 0:02:32]} 11. dxc5 {[%clk 0:02:38]}  bxc5 {[%clk 0:02:32]} 12. Nc4 {[%clk 0:02:35]}  d5 {[%clk 0:02:30]} 13. Bxc5 {[%clk 0:02:06]}  dxc4 {[%clk 0:02:24]} 14. Qxd8+ {[%clk 0:02:06]}  Kxd8 {[%clk 0:02:24]} 15. Bxc4 {[%clk 0:02:05]}  Nfd7 {[%clk 0:02:18]} 16. O-O-O {[%clk 0:02:02]}  Kc8 {[%clk 0:02:14]} 17. Bd6 {[%clk 0:01:56]}  Nc6 {[%clk 0:01:57]} 18. Ne2 {[%clk 0:01:41]}  Rd8 {[%clk 0:01:49]} 19. c3 {[%clk 0:01:40]}  Nde5 {[%clk 0:01:47]} 20. Ba2 {[%clk 0:01:36]}  a5 {[%clk 0:01:33]} 21. f4 {[%clk 0:01:06]}  Ng4 {[%clk 0:01:10]} 22. Bc5 {[%clk 0:01:04]}  Kc7 {[%clk 0:00:59]} 23. e5 {[%clk 0:00:59]}  h5 {[%clk 0:00:47]} 24. Rhf1 {[%clk 0:00:53]}  Bf8 {[%clk 0:00:46]} 25. Bg1 {[%clk 0:00:49]}  Rxd1+ {[%clk 0:00:41]} 26. Rxd1 {[%clk 0:00:48]}  Rd8 {[%clk 0:00:42]} 27. Rxd8 {[%clk 0:00:43]}  Nxd8 {[%clk 0:00:40]} 28. g3 {[%clk 0:00:41]}  Bc6 {[%clk 0:00:37]} 29. Bb3 {[%clk 0:00:37]}  Nb7 {[%clk 0:00:37]} 30. Nd4 {[%clk 0:00:35]}  Nc5 {[%clk 0:00:31]} 31. Kc2 {[%clk 0:00:23]}  Bxa4 {[%clk 0:00:27]} 32. Bxa4 {[%clk 0:00:23]}  Nxa4 {[%clk 0:00:28]} 33. Nf3 {[%clk 0:00:22]}  Be7 {[%clk 0:00:26]} 34. Nd2 {[%clk 0:00:20]}  Nb6 {[%clk 0:00:25]} 35. Bxb6+ {[%clk 0:00:18]}  Kxb6 {[%clk 0:00:25]} 36. Kd3 {[%clk 0:00:15]}  Kb5 {[%clk 0:00:21]} 37. b3 {[%clk 0:00:15]}  Bc5 {[%clk 0:00:20]} 38. Ne4 {[%clk 0:00:13]}  Nf2+ {[%clk 0:00:20]} 39. Nxf2 {[%clk 0:00:12]}  Bxf2 {[%clk 0:00:20]} 40. g4 {[%clk 0:00:11]}  hxg4 {[%clk 0:00:18]} 41. h5 {[%clk 0:00:12]}  gxh5 {[%clk 0:00:18]} 42. f5 {[%clk 0:00:12]}  exf5 {[%clk 0:00:18]} 43. c4+ {[%clk 0:00:13]}  Kc5 {[%clk 0:00:17]} 44. e6 {[%clk 0:00:14]}  fxe6 {[%clk 0:00:16]} 45. Ke2 {[%clk 0:00:15]}  Bd4 {[%clk 0:00:16]} 46. Kd3 {[%clk 0:00:15]}  e5 {[%clk 0:00:15]} 47. Ke2 {[%clk 0:00:16]}  Kb4 {[%clk 0:00:14]} 48. Kf1 {[%clk 0:00:17]}  Kxb3 {[%clk 0:00:14]} 49. c5 {[%clk 0:00:18]}  Bxc5 {[%clk 0:00:14]} 50. Ke2 {[%clk 0:00:18]}  Kc4 {[%clk 0:00:15]} 51. Kf1 {[%clk 0:00:19]}  f4 {[%clk 0:00:15]} 52. Kg2 {[%clk 0:00:20]}  e4 {[%clk 0:00:16]} 53. Kf1 {[%clk 0:00:16]}  h4 {[%clk 0:00:16]} 54. Ke2 {[%clk 0:00:17]}  h3 {[%clk 0:00:16]} 0-1


[Site "https://www.chess.com"]

[Event "Titled Tuesday Blitz February 21 Early 2023"]
[White "Stijve, Theo"]
[Black "Kouskoutis, Georgios-Alexandros"]
[WhiteFideId "1331132"]
[BlackFideId "4234049"]
[WhiteElo "2351"]
[BlackElo "2295"]
[Result "1-0"]
[Round "07"]
[TimeControl "180+2"]
[Date "2023.02.21"]
[WhiteClock "0:00:15"]
[BlackClock "0:00:01"]

1. e4 {[%clk 0:03:00]}  c5 {[%clk 0:02:57]} 2. Nf3 {[%clk 0:03:01]}  e6 {[%clk 0:02:57]} 3. d4 {[%clk 0:02:59]}  cxd4 {[%clk 0:02:57]} 4. Nxd4 {[%clk 0:03:00]}  Nc6 {[%clk 0:02:58]} 5. Nc3 {[%clk 0:03:00]}  Qc7 {[%clk 0:02:57]} 6. Be2 {[%clk 0:02:58]}  a6 {[%clk 0:02:57]} 7. O-O {[%clk 0:02:59]}  b5 {[%clk 0:02:58]} 8. Nxc6 {[%clk 0:02:39]}  Qxc6 {[%clk 0:02:59]} 9. e5 {[%clk 0:02:39]}  Bb7 {[%clk 0:02:53]} 10. Bf3 {[%clk 0:02:25]}  Qc7 {[%clk 0:02:44]} 11. Bf4 {[%clk 0:02:24]}  Rc8 {[%clk 0:02:18]} 12. a4 {[%clk 0:02:05]}  b4 {[%clk 0:02:04]} 13. Ne4 {[%clk 0:02:04]}  f5 {[%clk 0:02:02]} 14. Nd6+ {[%clk 0:01:48]}  Bxd6 {[%clk 0:02:01]} 15. exd6 {[%clk 0:01:24]}  Qb8 {[%clk 0:01:27]} 16. Bh5+ {[%clk 0:01:11]}  Kf8 {[%clk 0:01:22]} 17. Be5 {[%clk 0:01:04]}  Rc5 {[%clk 0:01:08]} 18. Bxg7+ {[%clk 0:00:56]}  Kxg7 {[%clk 0:01:07]} 19. Qd4+ {[%clk 0:00:56]}  Nf6 {[%clk 0:01:07]} 20. Qxc5 {[%clk 0:00:51]}  Nxh5 {[%clk 0:01:05]} 21. Qxb4 {[%clk 0:00:52]}  Bc6 {[%clk 0:00:55]} 22. Qxb8 {[%clk 0:00:46]}  Rxb8 {[%clk 0:00:56]} 23. b3 {[%clk 0:00:46]}  Nf4 {[%clk 0:00:53]} 24. f3 {[%clk 0:00:47]}  Kf6 {[%clk 0:00:40]} 25. Kf2 {[%clk 0:00:46]}  a5 {[%clk 0:00:17]} 26. Rad1 {[%clk 0:00:39]}  e5 {[%clk 0:00:16]} 27. g3 {[%clk 0:00:35]}  Ng6 {[%clk 0:00:15]} 28. h4 {[%clk 0:00:34]}  h5 {[%clk 0:00:14]} 29. Rfe1 {[%clk 0:00:34]}  f4 {[%clk 0:00:10]} 30. Rd3 {[%clk 0:00:24]}  fxg3+ {[%clk 0:00:10]} 31. Kxg3 {[%clk 0:00:25]}  Nf4 {[%clk 0:00:10]} 32. Rc3 {[%clk 0:00:25]}  Rg8+ {[%clk 0:00:10]} 33. Kf2 {[%clk 0:00:25]}  Rg2+ {[%clk 0:00:08]} 34. Kf1 {[%clk 0:00:23]}  Rd2 {[%clk 0:00:08]} 35. Rc5 {[%clk 0:00:20]}  Bxf3 {[%clk 0:00:07]} 36. Rexe5 {[%clk 0:00:19]}  Rd1+ {[%clk 0:00:02]} 37. Kf2 {[%clk 0:00:18]}  Bg4 {[%clk 0:00:03]} 38. Re4 {[%clk 0:00:16]}  Nh3+ {[%clk 0:00:02]} 39. Ke3 {[%clk 0:00:15]}  Rxd6 {[%clk 0:00:02]} 40. Rxa5 {[%clk 0:00:15]}  Rc6 {[%clk 0:00:02]} 41. c4 {[%clk 0:00:15]}  Ng1 {[%clk 0:00:02]} 42. Rf4+ {[%clk 0:00:14]}  Ke6 {[%clk 0:00:02]} 43. Rd5 {[%clk 0:00:14]}  Nf3 {[%clk 0:00:01]} 44. Re4+ {[%clk 0:00:15]} 1-0


[Site "https://www.chess.com"]

[Event "Titled Tuesday Blitz February 21 Early 2023"]
[White "Mamedov, Edgar"]
[Black "Liu, Casper"]
[WhiteFideId "13739980"]
[BlackFideId "1454153"]
[WhiteElo "2193"]
[BlackElo "2278"]
[Result "1-0"]
[Round "07"]
[TimeControl "180+2"]
[Date "2023.02.21"]
[WhiteClock "0:00:18"]
[BlackClock "0:01:33"]

1. d4 {[%clk 0:03:00]}  d5 {[%clk 0:02:59]} 2. Nf3 {[%clk 0:02:59]}  Nf6 {[%clk 0:02:58]} 3. c4 {[%clk 0:02:59]}  dxc4 {[%clk 0:02:59]} 4. e3 {[%clk 0:02:52]}  Bg4 {[%clk 0:03:00]} 5. Bxc4 {[%clk 0:02:51]}  e6 {[%clk 0:03:01]} 6. O-O {[%clk 0:02:52]}  a6 {[%clk 0:03:00]} 7. Be2 {[%clk 0:02:50]}  Bd6 {[%clk 0:02:59]} 8. Nbd2 {[%clk 0:02:50]}  c5 {[%clk 0:02:59]} 9. Nc4 {[%clk 0:02:47]}  cxd4 {[%clk 0:02:59]} 10. Nxd6+ {[%clk 0:02:46]}  Qxd6 {[%clk 0:02:59]} 11. Qxd4 {[%clk 0:02:46]}  Qxd4 {[%clk 0:03:00]} 12. Nxd4 {[%clk 0:02:46]}  Bxe2 {[%clk 0:03:01]} 13. Nxe2 {[%clk 0:02:46]}  O-O {[%clk 0:03:01]} 14. f3 {[%clk 0:02:44]}  Nc6 {[%clk 0:03:02]} 15. e4 {[%clk 0:02:44]}  Rfd8 {[%clk 0:03:02]} 16. Bf4 {[%clk 0:02:38]}  Rac8 {[%clk 0:03:02]} 17. Rac1 {[%clk 0:02:37]}  Nd7 {[%clk 0:02:52]} 18. a3 {[%clk 0:02:26]}  e5 {[%clk 0:02:43]} 19. Be3 {[%clk 0:02:24]}  f6 {[%clk 0:02:42]} 20. Nc3 {[%clk 0:02:22]}  Kf7 {[%clk 0:02:40]} 21. Nd5 {[%clk 0:02:22]}  Nd4 {[%clk 0:02:31]} 22. Bxd4 {[%clk 0:02:20]}  exd4 {[%clk 0:02:30]} 23. Kf2 {[%clk 0:02:10]}  Ne5 {[%clk 0:02:13]} 24. Ke2 {[%clk 0:02:10]}  d3+ {[%clk 0:02:10]} 25. Kd2 {[%clk 0:02:03]}  Nc4+ {[%clk 0:02:10]} 26. Kxd3 {[%clk 0:02:02]}  Nxb2+ {[%clk 0:02:10]} 27. Ke2 {[%clk 0:02:02]}  b5 {[%clk 0:02:02]} 28. Nb6 {[%clk 0:01:34]}  Rxc1 {[%clk 0:02:01]} 29. Rxc1 {[%clk 0:01:33]}  Rd3 {[%clk 0:01:47]} 30. Rc7+ {[%clk 0:01:23]}  Kg6 {[%clk 0:01:46]} 31. Nd5 {[%clk 0:01:11]}  Rxa3 {[%clk 0:01:43]} 32. Ne7+ {[%clk 0:01:11]}  Kg5 {[%clk 0:01:39]} 33. Nf5 {[%clk 0:00:45]}  g6 {[%clk 0:01:37]} 34. h4+ {[%clk 0:00:18]}  Kf4 {[%clk 0:01:34]} 35. g3+ {[%clk 0:00:19]}  Ke5 {[%clk 0:01:33]} 36. Re7# {[%clk 0:00:18]} 1-0


[Site "https://www.chess.com"]

[Event "Titled Tuesday Blitz February 21 Early 2023"]
[White "Pakleza, Zbigniew"]
[Black "Baches Garcia, Guillermo"]
[WhiteFideId "1119290"]
[BlackFideId "2209764"]
[WhiteElo "2494"]
[BlackElo "2327"]
[Result "1-0"]
[Round "07"]
[TimeControl "180+2"]
[Date "2023.02.21"]
[WhiteClock "0:00:03"]
[BlackClock "0:00:01"]

1. d4 {[%clk 0:03:00]}  Nf6 {[%clk 0:02:59]} 2. Nf3 {[%clk 0:03:00]}  e6 {[%clk 0:02:59]} 3. Bf4 {[%clk 0:03:00]}  b6 {[%clk 0:02:59]} 4. e3 {[%clk 0:03:00]}  Bb7 {[%clk 0:03:00]} 5. h3 {[%clk 0:02:59]}  c5 {[%clk 0:02:59]} 6. c3 {[%clk 0:02:59]}  Be7 {[%clk 0:02:59]} 7. Nbd2 {[%clk 0:02:59]}  cxd4 {[%clk 0:02:58]} 8. cxd4 {[%clk 0:02:59]}  O-O {[%clk 0:02:56]} 9. Bd3 {[%clk 0:02:58]}  Nc6 {[%clk 0:02:48]} 10. a3 {[%clk 0:02:57]}  d6 {[%clk 0:02:48]} 11. Qe2 {[%clk 0:02:54]}  Re8 {[%clk 0:02:44]} 12. O-O {[%clk 0:02:52]}  Bf8 {[%clk 0:02:43]} 13. Bh2 {[%clk 0:02:45]}  e5 {[%clk 0:02:38]} 14. dxe5 {[%clk 0:02:26]}  dxe5 {[%clk 0:02:36]} 15. Rfd1 {[%clk 0:02:22]}  Qe7 {[%clk 0:02:14]} 16. Bb5 {[%clk 0:02:15]}  e4 {[%clk 0:01:54]} 17. Bxc6 {[%clk 0:02:15]}  Bxc6 {[%clk 0:01:45]} 18. Nd4 {[%clk 0:02:16]}  Bd5 {[%clk 0:01:31]} 19. Bg3 {[%clk 0:02:08]}  Rac8 {[%clk 0:01:30]} 20. Rac1 {[%clk 0:02:03]}  Qb7 {[%clk 0:01:29]} 21. Nb5 {[%clk 0:01:45]}  Rc6 {[%clk 0:00:45]} 22. Rxc6 {[%clk 0:01:18]}  Bxc6 {[%clk 0:00:41]} 23. Rc1 {[%clk 0:01:18]}  Rc8 {[%clk 0:00:32]} 24. Nc3 {[%clk 0:01:02]}  Bd7 {[%clk 0:00:25]} 25. Be5 {[%clk 0:00:56]}  Be7 {[%clk 0:00:26]} 26. Bxf6 {[%clk 0:00:49]}  Bxf6 {[%clk 0:00:26]} 27. Ndxe4 {[%clk 0:00:49]}  Be5 {[%clk 0:00:22]} 28. Rd1 {[%clk 0:00:43]}  Bc6 {[%clk 0:00:20]} 29. Qg4 {[%clk 0:00:30]}  Re8 {[%clk 0:00:16]} 30. Nd6 {[%clk 0:00:26]}  Bxd6 {[%clk 0:00:13]} 31. Rxd6 {[%clk 0:00:27]}  g6 {[%clk 0:00:13]} 32. b4 {[%clk 0:00:23]}  h5 {[%clk 0:00:12]} 33. Qg5 {[%clk 0:00:20]}  Qc7 {[%clk 0:00:10]} 34. Rd3 {[%clk 0:00:08]}  a5 {[%clk 0:00:06]} 35. b5 {[%clk 0:00:06]}  Ba8 {[%clk 0:00:06]} 36. Nd5 {[%clk 0:00:05]}  Bxd5 {[%clk 0:00:05]} 37. Qxd5 {[%clk 0:00:04]}  Rc8 {[%clk 0:00:05]} 38. g3 {[%clk 0:00:05]}  h4 {[%clk 0:00:05]} 39. gxh4 {[%clk 0:00:04]}  Qe7 {[%clk 0:00:04]} 40. h5 {[%clk 0:00:04]}  gxh5 {[%clk 0:00:04]} 41. Qxh5 {[%clk 0:00:05]}  Rc5 {[%clk 0:00:03]} 42. Qf3 {[%clk 0:00:03]}  Kh7 {[%clk 0:00:03]} 43. Rd4 {[%clk 0:00:03]}  Rg5+ {[%clk 0:00:03]} 44. Rg4 {[%clk 0:00:03]}  Rxg4+ {[%clk 0:00:04]} 45. Qxg4 {[%clk 0:00:04]}  Qxa3 {[%clk 0:00:04]} 46. Qf5+ {[%clk 0:00:03]}  Kg7 {[%clk 0:00:04]} 47. Qe5+ {[%clk 0:00:03]}  Kg8 {[%clk 0:00:03]} 48. Qb8+ {[%clk 0:00:02]}  Kg7 {[%clk 0:00:03]} 49. Qxb6 {[%clk 0:00:03]}  Qb4 {[%clk 0:00:03]} 50. Qd4+ {[%clk 0:00:02]}  Qxd4 {[%clk 0:00:01]} 51. exd4 {[%clk 0:00:03]}  a4 {[%clk 0:00:02]} 52. b6 {[%clk 0:00:03]}  a3 {[%clk 0:00:02]} 53. b7 {[%clk 0:00:04]}  a2 {[%clk 0:00:03]} 54. b8=Q {[%clk 0:00:05]}  a1=Q+ {[%clk 0:00:04]} 55. Kg2 {[%clk 0:00:05]}  Qxd4 {[%clk 0:00:04]} 56. Qg3+ {[%clk 0:00:06]}  Kf8 {[%clk 0:00:04]} 57. h4 {[%clk 0:00:06]}  Qe4+ {[%clk 0:00:04]} 58. Kh2 {[%clk 0:00:07]}  Qe1 {[%clk 0:00:03]} 59. Kh3 {[%clk 0:00:08]}  f5 {[%clk 0:00:02]} 60. Qd6+ {[%clk 0:00:07]}  Kg7 {[%clk 0:00:02]} 61. Qd7+ {[%clk 0:00:06]}  Kg6 {[%clk 0:00:02]} 62. Qd6+ {[%clk 0:00:05]}  Kg7 {[%clk 0:00:02]} 63. Qg3+ {[%clk 0:00:04]}  Kf6 {[%clk 0:00:03]} 64. Qg5+ {[%clk 0:00:04]}  Ke5 {[%clk 0:00:03]} 65. Kg2 {[%clk 0:00:05]}  Qe4+ {[%clk 0:00:02]} 66. Kh2 {[%clk 0:00:05]}  Qe2 {[%clk 0:00:02]} 67. Qg3+ {[%clk 0:00:04]}  Kf6 {[%clk 0:00:01]} 68. Kg2 {[%clk 0:00:03]} 1-0


[Site "https://www.chess.com"]

[Event "Titled Tuesday Blitz February 21 Early 2023"]
[White "Alex_Sahakyan2006"]
[Black "Golubev, Mikhail"]
[BlackFideId "14100983"]
[WhiteElo "2664"]
[BlackElo "2461"]
[Result "1-0"]
[Round "07"]
[TimeControl "180+2"]
[Date "2023.02.21"]
[WhiteClock "0:00:58"]
[BlackClock "0:00:12"]

1. c4 {[%clk 0:03:00]}  g6 {[%clk 0:02:59]} 2. Nc3 {[%clk 0:02:59]}  Bg7 {[%clk 0:03:00]} 3. d4 {[%clk 0:02:57]}  d6 {[%clk 0:03:00]} 4. e4 {[%clk 0:02:56]}  Nf6 {[%clk 0:03:00]} 5. Bd3 {[%clk 0:02:45]}  O-O {[%clk 0:02:57]} 6. Nge2 {[%clk 0:02:37]}  Nc6 {[%clk 0:02:54]} 7. O-O {[%clk 0:02:29]}  Nh5 {[%clk 0:02:53]} 8. Bc2 {[%clk 0:02:16]}  e5 {[%clk 0:02:50]} 9. Be3 {[%clk 0:02:15]}  Nf4 {[%clk 0:02:37]} 10. Qd2 {[%clk 0:01:55]}  exd4 {[%clk 0:02:16]} 11. Nxd4 {[%clk 0:01:52]}  Nxd4 {[%clk 0:02:14]} 12. Bxf4 {[%clk 0:01:48]}  Be6 {[%clk 0:01:47]} 13. b3 {[%clk 0:01:35]}  Qf6 {[%clk 0:01:24]} 14. e5 {[%clk 0:01:32]}  dxe5 {[%clk 0:00:35]} 15. Bg5 {[%clk 0:01:30]}  Qf3 {[%clk 0:00:23]} 16. gxf3 {[%clk 0:01:20]}  Nxf3+ {[%clk 0:00:24]} 17. Kg2 {[%clk 0:01:20]}  Nxd2 {[%clk 0:00:25]} 18. Bxd2 {[%clk 0:01:21]}  c6 {[%clk 0:00:25]} 19. Rad1 {[%clk 0:01:20]}  f5 {[%clk 0:00:24]} 20. Be3 {[%clk 0:01:16]}  e4 {[%clk 0:00:21]} 21. Bd4 {[%clk 0:01:07]}  Bh6 {[%clk 0:00:20]} 22. Be5 {[%clk 0:01:03]}  f4 {[%clk 0:00:18]} 23. Bxe4 {[%clk 0:01:03]}  f3+ {[%clk 0:00:16]} 24. Bxf3 {[%clk 0:01:02]}  Bh3+ {[%clk 0:00:16]} 25. Kxh3 {[%clk 0:01:02]}  Rxf3+ {[%clk 0:00:15]} 26. Kg2 {[%clk 0:01:02]}  Raf8 {[%clk 0:00:14]} 27. Ne4 {[%clk 0:01:02]}  R3f5 {[%clk 0:00:13]} 28. Bg3 {[%clk 0:01:02]}  Ra5 {[%clk 0:00:12]} 29. a4 {[%clk 0:00:58]} 1-0


[Site "https://www.chess.com"]

[Event "Titled Tuesday Blitz February 21 Early 2023"]
[White "Derix, Bernhard"]
[Black "Dauner, Benedikt"]
[WhiteFideId "4642368"]
[BlackFideId "16225899"]
[WhiteElo "2065"]
[BlackElo "2400"]
[Result "1-0"]
[Round "07"]
[TimeControl "180+2"]
[Date "2023.02.21"]
[WhiteClock "0:00:45"]
[BlackClock "0:00:03"]

1. e4 {[%clk 0:02:18]}  e6 {[%clk 0:03:00]} 2. d3 {[%clk 0:02:18]}  Ne7 {[%clk 0:02:47]} 3. Nf3 {[%clk 0:02:17]}  g6 {[%clk 0:02:43]} 4. g3 {[%clk 0:02:18]}  Bg7 {[%clk 0:02:43]} 5. Bg2 {[%clk 0:02:18]}  b6 {[%clk 0:02:43]} 6. O-O {[%clk 0:02:19]}  Bb7 {[%clk 0:02:43]} 7. h4 {[%clk 0:02:20]}  h6 {[%clk 0:02:42]} 8. Re1 {[%clk 0:02:20]}  d6 {[%clk 0:02:42]} 9. c3 {[%clk 0:02:20]}  Nd7 {[%clk 0:02:42]} 10. d4 {[%clk 0:02:20]}  a6 {[%clk 0:02:42]} 11. Nbd2 {[%clk 0:02:21]}  Nf6 {[%clk 0:02:33]} 12. a4 {[%clk 0:02:20]}  Qd7 {[%clk 0:02:26]} 13. e5 {[%clk 0:02:19]}  Ng4 {[%clk 0:02:21]} 14. Qe2 {[%clk 0:02:12]}  Nf5 {[%clk 0:02:15]} 15. Nc4 {[%clk 0:02:07]}  d5 {[%clk 0:01:58]} 16. Ncd2 {[%clk 0:02:04]}  a5 {[%clk 0:01:54]} 17. Nf1 {[%clk 0:01:59]}  Ba6 {[%clk 0:01:53]} 18. Qd1 {[%clk 0:01:59]}  h5 {[%clk 0:01:49]} 19. Ng5 {[%clk 0:01:56]}  c5 {[%clk 0:01:45]} 20. b3 {[%clk 0:01:47]}  Bf8 {[%clk 0:01:41]} 21. c4 {[%clk 0:01:38]}  Nxd4 {[%clk 0:01:05]} 22. cxd5 {[%clk 0:01:37]}  Rd8 {[%clk 0:01:00]} 23. Bb2 {[%clk 0:01:34]}  Be7 {[%clk 0:00:33]} 24. Bxd4 {[%clk 0:01:29]}  cxd4 {[%clk 0:00:33]} 25. d6 {[%clk 0:01:17]}  Bxg5 {[%clk 0:00:30]} 26. hxg5 {[%clk 0:01:18]}  d3 {[%clk 0:00:17]} 27. Rc1 {[%clk 0:01:18]}  Rc8 {[%clk 0:00:17]} 28. Qd2 {[%clk 0:01:13]}  Rxc1 {[%clk 0:00:12]} 29. Qxc1 {[%clk 0:01:12]}  O-O {[%clk 0:00:13]} 30. f3 {[%clk 0:01:11]}  Rc8 {[%clk 0:00:12]} 31. Qd2 {[%clk 0:01:11]}  Rc2 {[%clk 0:00:10]} 32. Qf4 {[%clk 0:01:09]}  b5 {[%clk 0:00:08]} 33. fxg4 {[%clk 0:01:08]}  Qa7+ {[%clk 0:00:08]} 34. Qe3 {[%clk 0:01:06]}  Qb8 {[%clk 0:00:06]} 35. Qxd3 {[%clk 0:01:03]}  Rxg2+ {[%clk 0:00:05]} 36. Kxg2 {[%clk 0:01:03]}  Bb7+ {[%clk 0:00:05]} 37. Kg1 {[%clk 0:01:01]}  Qa7+ {[%clk 0:00:05]} 38. Qe3 {[%clk 0:01:01]}  Qa6 {[%clk 0:00:05]} 39. d7 {[%clk 0:01:00]}  Qc6 {[%clk 0:00:05]} 40. d8=Q+ {[%clk 0:01:00]}  Kh7 {[%clk 0:00:06]} 41. Qe4 {[%clk 0:00:53]}  Qc5+ {[%clk 0:00:05]} 42. Qdd4 {[%clk 0:00:51]}  Qc7 {[%clk 0:00:05]} 43. Qf4 {[%clk 0:00:49]}  hxg4 {[%clk 0:00:03]} 44. Re2 {[%clk 0:00:46]}  bxa4 {[%clk 0:00:03]} 45. Rh2+ {[%clk 0:00:46]}  Kg8 {[%clk 0:00:03]} 46. Qf6 {[%clk 0:00:45]} 1-0


[Site "https://www.chess.com"]

[Event "Titled Tuesday Blitz February 21 Early 2023"]
[White "Volkov, Maksim"]
[Black "Manukyan, Sargis V."]
[WhiteFideId "54123070"]
[BlackFideId "13303465"]
[WhiteElo "2258"]
[BlackElo "2253"]
[Result "0-1"]
[Round "07"]
[TimeControl "180+2"]
[Date "2023.02.21"]
[WhiteClock "0:00:05"]
[BlackClock "0:00:16"]

1. e4 {[%clk 0:03:00]}  c5 {[%clk 0:02:05]} 2. Nf3 {[%clk 0:02:55]}  Nc6 {[%clk 0:02:03]} 3. c4 {[%clk 0:02:41]}  g6 {[%clk 0:02:03]} 4. d4 {[%clk 0:02:40]}  cxd4 {[%clk 0:02:03]} 5. Nxd4 {[%clk 0:02:41]}  Bg7 {[%clk 0:02:03]} 6. Be3 {[%clk 0:02:39]}  Nf6 {[%clk 0:02:03]} 7. Nc3 {[%clk 0:02:34]}  Ng4 {[%clk 0:02:03]} 8. Qxg4 {[%clk 0:02:30]}  Nxd4 {[%clk 0:02:03]} 9. Qd1 {[%clk 0:02:03]}  Ne6 {[%clk 0:01:53]} 10. Be2 {[%clk 0:01:47]}  Qa5 {[%clk 0:01:46]} 11. Rc1 {[%clk 0:01:46]}  b6 {[%clk 0:01:45]} 12. O-O {[%clk 0:01:45]}  Bb7 {[%clk 0:01:45]} 13. f3 {[%clk 0:01:44]}  g5 {[%clk 0:01:43]} 14. Rf2 {[%clk 0:01:31]}  h5 {[%clk 0:01:42]} 15. Bf1 {[%clk 0:01:29]}  Bxc3 {[%clk 0:01:41]} 16. Rxc3 {[%clk 0:01:28]}  Qe5 {[%clk 0:01:41]} 17. Rd2 {[%clk 0:01:23]}  d6 {[%clk 0:01:41]} 18. Rb3 {[%clk 0:01:13]}  g4 {[%clk 0:01:39]} 19. Rb5 {[%clk 0:01:10]}  Qg7 {[%clk 0:01:37]} 20. f4 {[%clk 0:00:57]}  Bxe4 {[%clk 0:01:33]} 21. f5 {[%clk 0:00:57]}  Nc7 {[%clk 0:01:28]} 22. Bd4 {[%clk 0:00:57]}  f6 {[%clk 0:01:26]} 23. Rb3 {[%clk 0:00:56]}  Bxf5 {[%clk 0:01:24]} 24. Re3 {[%clk 0:00:53]}  O-O-O {[%clk 0:01:12]} 25. b4 {[%clk 0:00:48]}  e5 {[%clk 0:01:12]} 26. Bb2 {[%clk 0:00:47]}  Qg5 {[%clk 0:01:13]} 27. Ra3 {[%clk 0:00:45]}  Kb8 {[%clk 0:01:02]} 28. Rxd6 {[%clk 0:00:42]}  Rxd6 {[%clk 0:00:54]} 29. Qxd6 {[%clk 0:00:09]}  g3 {[%clk 0:00:50]} 30. h3 {[%clk 0:00:08]}  Qg7 {[%clk 0:00:42]} 31. c5 {[%clk 0:00:08]}  Qf8 {[%clk 0:00:41]} 32. Qd2 {[%clk 0:00:07]}  Bc8 {[%clk 0:00:37]} 33. cxb6 {[%clk 0:00:07]}  axb6 {[%clk 0:00:37]} 34. Qe3 {[%clk 0:00:07]}  Qxb4 {[%clk 0:00:28]} 35. Rb3 {[%clk 0:00:07]}  Qa5 {[%clk 0:00:24]} 36. Rxb6+ {[%clk 0:00:07]}  Bb7 {[%clk 0:00:23]} 37. Rxf6 {[%clk 0:00:07]}  Nd5 {[%clk 0:00:21]} 38. Qxe5+ {[%clk 0:00:06]}  Ka7 {[%clk 0:00:17]} 39. Bd4+ {[%clk 0:00:05]}  Ka8 {[%clk 0:00:17]} 40. Re6 {[%clk 0:00:05]}  Rd8 {[%clk 0:00:16]} 41. Re8 {[%clk 0:00:05]}  Bc6 {[%clk 0:00:16]} 0-1


[Site "https://www.chess.com"]

[Event "Titled Tuesday Blitz February 21 Early 2023"]
[White "Bon, Michael"]
[Black "Tologon tegin, Semetei"]
[WhiteFideId "620696"]
[BlackFideId "13800574"]
[WhiteElo "2394"]
[BlackElo "2372"]
[Result "1-0"]
[Round "07"]
[TimeControl "180+2"]
[Date "2023.02.21"]
[WhiteClock "0:00:50"]
[BlackClock "0:00:18"]

1. e4 {[%clk 0:03:00]}  c5 {[%clk 0:02:54]} 2. Nf3 {[%clk 0:02:58]}  Nc6 {[%clk 0:02:54]} 3. d4 {[%clk 0:02:56]}  cxd4 {[%clk 0:02:54]} 4. Nxd4 {[%clk 0:02:57]}  Nf6 {[%clk 0:02:53]} 5. Nc3 {[%clk 0:02:57]}  e5 {[%clk 0:02:54]} 6. Ndb5 {[%clk 0:02:57]}  d6 {[%clk 0:02:54]} 7. Bg5 {[%clk 0:02:57]}  a6 {[%clk 0:02:54]} 8. Na3 {[%clk 0:02:58]}  b5 {[%clk 0:02:54]} 9. Bxf6 {[%clk 0:02:58]}  gxf6 {[%clk 0:02:54]} 10. Nd5 {[%clk 0:02:59]}  f5 {[%clk 0:02:53]} 11. c3 {[%clk 0:02:59]}  Bg7 {[%clk 0:02:53]} 12. exf5 {[%clk 0:02:59]}  Bxf5 {[%clk 0:02:49]} 13. Nc2 {[%clk 0:03:00]}  O-O {[%clk 0:02:49]} 14. Nce3 {[%clk 0:03:00]}  Be6 {[%clk 0:02:49]} 15. Bd3 {[%clk 0:03:00]}  f5 {[%clk 0:02:48]} 16. O-O {[%clk 0:03:00]}  e4 {[%clk 0:02:48]} 17. Nf4 {[%clk 0:03:00]}  Bf7 {[%clk 0:02:42]} 18. Bc2 {[%clk 0:02:58]}  Qd7 {[%clk 0:02:41]} 19. Bb3 {[%clk 0:02:48]}  Bh6 {[%clk 0:02:32]} 20. Bxf7+ {[%clk 0:02:10]}  Qxf7 {[%clk 0:02:26]} 21. Ned5 {[%clk 0:02:06]}  Kh8 {[%clk 0:02:13]} 22. a4 {[%clk 0:02:03]}  b4 {[%clk 0:02:07]} 23. cxb4 {[%clk 0:02:01]}  Nxb4 {[%clk 0:02:06]} 24. Qd4+ {[%clk 0:01:58]}  Bg7 {[%clk 0:01:50]} 25. Qxb4 {[%clk 0:01:58]}  Rab8 {[%clk 0:01:51]} 26. Qxd6 {[%clk 0:01:55]}  Rxb2 {[%clk 0:01:52]} 27. Qxa6 {[%clk 0:01:55]}  Rg8 {[%clk 0:01:31]} 28. Qe6 {[%clk 0:01:45]}  Qa7 {[%clk 0:01:20]} 29. Rab1 {[%clk 0:01:19]}  Ra2 {[%clk 0:00:55]} 30. Qxf5 {[%clk 0:01:13]}  Bd4 {[%clk 0:00:51]} 31. Ne6 {[%clk 0:01:06]}  e3 {[%clk 0:00:19]} 32. Nxe3 {[%clk 0:00:55]}  Qa8 {[%clk 0:00:18]} 33. Nxd4 {[%clk 0:00:50]} 1-0


[Site "https://www.chess.com"]